[Event "EYCC Girls U14 2018"]
[Site "Riga"]
[Date "2018.08.29"]
[Round "9"]
[White "Ciolacu, Alessia Mihaela"]
[Black "Bardorz, Jana"]
[Result "1-0"]
[ECO "A48"]
[WhiteElo "2020"]
[BlackElo "1869"]
[Annotator "NA"]
[PlyCount "91"]
[EventDate "2018.08.20"]
[EventType "swiss"]
[EventCountry "LAT"]
[SourceTitle "playchess.com"]
[Source "ChessBase"]
[SourceQuality "1"]
[TimeControl "40/5400+30:1800+30"]

1. d4 {[%emt 0:00:00]} Nf6 {[%emt 0:00:00]} 2. Nf3 {[%emt 0:00:00]} g6 {[%emt 0:00:04]} 3. Bg5 {[%emt 0:01:02]} Bg7 {[%emt 0:01:05]} 4. Nbd2 {[%emt 0:00:48]} c5 {[%emt 0:02:24]} 5. e3 {[%emt 0:01:24]} cxd4 {[%emt 0:02:21]} 6. exd4 {[%emt 0:00:16]} d6 {[%emt 0:02:59] A48: 1 d4 Nf6 2 Nf3 g6: Torre, London and Colle Systems} (6... b6 7. c3 O-O 8. Bd3 Ba6 9. Bxa6 Nxa6 10. Qe2 Nc7 11. h4 b5 12. h5 b4 13. hxg6 hxg6 14. c4 {1-0 (22) Mamedyarov,S (2809)-Svidler,P (2760) Moscow 2018}) 7. Bd3 {[%emt 0:03:07]} O-O {[%emt 0:03:53]} 8. O-O {[%emt 0:03:58]} Nc6 {[%emt 0:04:48] LiveBook: 3 Games} 9. Re1 {[%emt 0:08:32]} Re8 {[%emt 0:04:05]} 10. c3 {[%emt 0:09:10]} Qc7 {[%emt 0:06:28]} 11. Nc4 {[%emt 0:02:55]} e5 $146 {[%emt 0:07:38]} ({Predecessor:} 11... b6 12. Bxf6 Bxf6 13. h4 Bg4 {0-1 (45) Orsolic,Z (1905)-Ognjan,R (2129) Bjelovar 2008}) 12. Bxf6 {[%emt 0:20:33]} Bxf6 {[%emt 0:00:46]} 13. Ne3 {[%emt 0:03:06]} Ne7 {[%emt 0:12:55]} 14. Bc4 {[%emt 0:13:55]} Bd7 {[%emt 0:07:21]} 15. Qb3 {[%emt 0:01:48]} Rf8 {[%emt 0:02:31]} 16. Rad1 {[%emt 0:01:43]} Rad8 {[%emt 0:05:11]} 17. dxe5 {[%emt 0:03:48]} dxe5 {[%emt 0:02:11]} 18. h4 {[%emt 0:06:48]} h6 {[%emt 0:04:07]} 19. Nd5 {[%emt 0:02:00]} Nxd5 {[%emt 0:02:20]} 20. Bxd5 {[%emt 0:00:13]} Bc6 {[%emt 0:03:32]} 21. Qc4 {[%emt 0:01:22]} Rde8 {[%emt 0:05:30]} 22. b4 $11 {[%emt 0:02:52]} Qb6 {[%emt 0:00:59]} 23. Bxc6 {[%emt 0:00:22]} Qxc6 {[%emt 0:01:03]} 24. Qxc6 {[%emt 0:00:54]} bxc6 {[%emt 0:00:06]} 25. Rd6 {[%emt 0:00:49]} e4 {[%emt 0:02:59]} 26. Nd4 {[%emt 0:07:02]} Bxh4 {[%emt 0:02:21]} 27. g3 {[%emt 0:00:38]} Bg5 {[%emt 0:01:59]} 28. Nxc6 {[%emt 0:00:32]} e3 {[%emt 0:02:58]} 29. f4 {[%emt 0:01:35]} Be7 {[%emt 0:01:35]} 30. Rd3 {[%emt 0:00:26]} Bf6 {[%emt 0:01:58]} 31. Rexe3 {[%emt 0:00:38]} Rxe3 {[%emt 0:01:55]} 32. Rxe3 {[%emt 0:00:05]} a6 {[%emt 0:01:19]} 33. a4 {[%emt 0:00:44]} Rc8 {[%emt 0:01:44]} 34. b5 {[%emt 0:00:19]} axb5 {[%emt 0:00:49]} 35. axb5 {[%emt 0:00:05]} g5 {[%emt 0:01:23]} 36. c4 {[%emt 0:01:13]} gxf4 {[%emt 0:00:45]} 37. gxf4 {[%emt 0:00:07]} Kg7 {[%emt 0:00:21]} 38. Rg3+ {[%emt 0:00:57]} Kf8 {[%emt 0:00:29]} 39. c5 {[%emt 0:00:44]} Ke8 {[%emt 0:01:28]} 40. Rd3 {[%emt 0:00:00]} h5 {[%emt 0:00:00]} 41. b6 {[%emt 0:06:42]} Be7 {[%emt 0:07:03]} 42. Nxe7 {[%emt 0:02:01]} Kxe7 {[%emt 0:00:47]} 43. b7 {[%emt 0:00:34]} Rb8 {[%emt 0:01:06]} 44. c6 {[%emt 0:00:11]} h4 {[%emt 0:00:11]} 45. c7 {[%emt 0:00:19]} Rxb7 {[%emt 0:00:04]} 46. c8=Q {[%emt 0:00:06]} 1-0

[Event "EYCC Girls U14 2018"]
[Site "Riga"]
[Date "2018.08.29"]
[Round "9"]
[White "Wikar, Martyna"]
[Black "Hakobyan, Astghik"]
[Result "0-1"]
[ECO "C00"]
[WhiteElo "1974"]
[BlackElo "1820"]
[Annotator "NA"]
[PlyCount "104"]
[EventDate "2018.08.20"]
[EventType "swiss"]
[EventCountry "LAT"]
[SourceTitle "playchess.com"]
[Source "ChessBase"]
[SourceQuality "1"]
[TimeControl "40/5400+30:1800+30"]

1. e4 {[%emt 0:00:00]} e6 {[%emt 0:00:00]} 2. d3 {[%emt 0:00:00]} d5 {[%emt 0:00:00]} 3. Nd2 {[%emt 0:00:06]} c5 {[%emt 0:00:00]} 4. Ngf3 {[%emt 0:00:30]} Nc6 {[%emt 0:00:07]} 5. g3 {[%emt 0:00:48]} g6 {[%emt 0:00:21]} 6. Bg2 {[%emt 0:01:55]} Bg7 {[%emt 0:00:05]} 7. O-O {[%emt 0:02:31]} Nf6 {[%emt 0:00:15]} 8. Re1 {[%emt 0:08:28]} O-O {[%emt 0:00:21]} 9. c3 {[%emt 0:02:04] LiveBook: 212 Games} e5 {[%emt 0:09:08] A08: King's Indian Attack} (9... b6 10. e5 Nd7 11. d4 a5 12. Nf1 a4 13. a3 Ba6 14. h4 Qc7 15. Bf4 Na5 16. Ne3 Nb3 17. Rb1 cxd4 18. cxd4 Rac8 {1-0 (54) Amin,B (2689)-Movsesian,S (2647) Riadh 2017}) 10. Qc2 {[%emt 0:06:49]} b6 {[%emt 0:07:58]} 11. a4 $146 {[%emt 0:11:47]} ({Predecessor:} 11. Nf1 Bb7 12. Bg5 d4 13. Qd2 Qd6 14. Rad1 Nd7 15. g4 {0-1 (41) Pahl,R-Janz,F Neumuenster 1995}) 11... Ba6 {[%emt 0:03:35]} ({Besser ist} 11... h6 $15) 12. Bf1 {[%emt 0:02:22]} (12. exd5 $11 Nxd5 13. Nc4) 12... Rc8 {[%emt 0:02:41]} 13. Nb3 {[%emt 0:12:14]} (13. a5 $5) 13... Nh5 {[%emt 0:09:49]} (13... Qd6 $15) 14. Bh3 {[%emt 0:10:54]} dxe4 {[%emt 0:03:21]} 15. dxe4 {[%emt 0:07:20]} Bd3 {[%emt 0:00:34]} 16. Qd1 {[%emt 0:01:00]} Rc7 {[%emt 0:01:53]} 17. Bg5 {[%emt 0:03:55]} f6 {[%emt 0:02:07]} 18. Be6+ {[%emt 0:03:48]} Kh8 {[%emt 0:00:32]} 19. Bd2 {[%emt 0:05:18]} c4 {[%emt 0:05:23]} 20. Nc1 {[%emt 0:00:16]} f5 {[%emt 0:05:36]} 21. Bg5 {[%emt 0:01:15]} Qe8 {[%emt 0:00:27]} 22. exf5 {[%emt 0:06:16]} gxf5 {[%emt 0:00:40]} 23. Nxd3 {[%emt 0:03:37]} cxd3 {[%emt 0:01:48]} 24. Bd5 {[%emt 0:02:15]} e4 {[%emt 0:01:04]} 25. g4 {[%emt 0:01:50]} Ne5 {[%emt 0:03:38]} 26. Nd4 $2 {[%emt 0:02:12]} (26. Nxe5 {was necessary.} Qxe5 27. Bb3) 26... Nxg4 {[%emt 0:02:21]} 27. Bxe4 {[%emt 0:01:41]} Nxf2 {[%emt 0:01:42]} 28. Bf3 {[%emt 0:00:51]} Nxd1 {[%emt 0:01:57]} 29. Rxe8 {[%emt 0:00:06]} Rxe8 {[%emt 0:00:18]} 30. Rxd1 {[%emt 0:00:37]} Bxd4+ {[%emt 0:00:31]} 31. cxd4 {[%emt 0:00:06]} Rg8 {[%emt 0:01:06]} 32. h4 {[%emt 0:00:31]} h6 {[%emt 0:00:17]} 33. Bxh5 $19 {[%emt 0:01:00]} hxg5 {[%emt 0:00:04]} 34. Bf3 {[%emt 0:01:33]} gxh4+ {[%emt 0:01:23]} 35. Kh1 {[%emt 0:00:39]} Rg3 {[%emt 0:00:16]} 36. Rxd3 {[%emt 0:00:50]} Rc1+ {[%emt 0:00:22]} 37. Rd1 {[%emt 0:00:11]} Rxd1+ {[%emt 0:00:07]} 38. Bxd1 {[%emt 0:00:06]} Rd3 {[%emt 0:00:33]} 39. Bc2 {[%emt 0:00:28]} Rxd4 40. Bxf5 {[%emt 0:00:00]} Rxa4 {[%emt 0:00:00]} 41. b3 {[%emt 0:01:13]} Rf4 {[%emt 0:00:41]} 42. Be6 {[%emt 0:00:46]} Kg7 {[%emt 0:00:11]} 43. Kh2 {[%emt 0:00:59]} Kf6 {[%emt 0:00:05]} 44. Bg8 {[%emt 0:00:39]} Ke5 {[%emt 0:00:19]} 45. Kh3 {[%emt 0:00:14]} Kd4 {[%emt 0:00:04]} 46. Be6 {[%emt 0:00:20]} Kc3 {[%emt 0:00:05]} 47. Bg8 {[%emt 0:00:09]} Rb4 {[%emt 0:00:05]} 48. Be6 {[%emt 0:00:33]} Rxb3 {[%emt 0:00:06]} 49. Kxh4 {[%emt 0:00:05]} a5 {[%emt 0:00:03]} 50. Kg3 {[%emt 0:00:23]} a4 {[%emt 0:00:04]} 51. Kf2 {[%emt 0:00:10]} a3 {[%emt 0:00:03]} 52. Ke2 {[%emt 0:00:18]} a2 {[%emt 0:00:04]} 0-1

[Event "EYCC Girls U14 2018"]
[Site "Riga"]
[Date "2018.08.29"]
[Round "9"]
[White "Levitan, Ronit"]
[Black "Dylag, Emilia"]
[Result "1-0"]
[ECO "B22"]
[WhiteElo "1933"]
[BlackElo "2095"]
[Annotator "NA RC"]
[PlyCount "123"]
[EventDate "2018.08.20"]
[EventType "swiss"]
[EventCountry "LAT"]
[SourceTitle "playchess.com"]
[Source "ChessBase"]
[SourceQuality "1"]
[TimeControl "40/5400+30:1800+30"]

1. e4 {[%emt 0:00:00]} c5 {[%emt 0:00:00]} 2. c3 {[%emt 0:00:00]} Nf6 {[%emt 0:00:00]} 3. e5 {[%emt 0:00:00]} Nd5 {[%emt 0:00:00]} 4. d4 {[%emt 0:00:00]} cxd4 {[%emt 0:00:09]} 5. cxd4 {[%emt 0:00:00]} d6 {[%emt 0:00:49]} 6. Nf3 {[%emt 0:00:28] LiveBook: 1087 Games} Nc6 {[%emt 0:00:41]} 7. Bc4 {[%emt 0:00:10]} dxe5 {[%emt 0:00:32]} 8. dxe5 {[%emt 0:00:56]} Ndb4 {[%emt 0:01:36]} 9. O-O {[%emt 0:01:36] B22: Sicilian: 2 c3} (9. Qxd8+ Nxd8 10. Na3 Bg4 11. Bd2 Nbc6 12. Bc3 Bxf3 13. gxf3 a6 14. Nc2 e6 15. Bd3 Rc8 16. Be4 Be7 {½-½ (42) Mamedov,R (2655)-Giri,A (2790) Shamkir 2016}) 9... Qxd1 {[%emt 0:00:39]} 10. Rxd1 {[%emt 0:00:08]} Bg4 {[%emt 0:01:05]} 11. Nc3 {[%emt 0:01:02]} e6 $146 {[%emt 0:16:22]} (11... Bxf3 $11 12. gxf3 Nxe5) ({Predecessor:} 11... g6 12. Bf4 Bg7 13. a3 Bxf3 {0-1 (13) Ibarra Jerez,J (2233)-Bogner,S (2586) Lorca 2017}) 12. Bf4 {[%emt 0:23:51]} Bxf3 {[%emt 0:06:36]} 13. gxf3 {[%emt 0:00:08]} g5 {[%emt 0:04:10]} 14. Be3 {[%emt 0:03:36]} ({Of course not} 14. Bxg5 Rg8 $17) 14... Nxe5 {[%emt 0:08:01]} 15. Bb3 {[%emt 0:06:42]} Rc8 {[%emt 0:14:41]} (15... Nxf3+ $17 16. Kg2 Nh4+ 17. Kh1 Be7 18. Ba4+ Nc6) 16. Ne4 {[%emt 0:04:51]} Be7 {[%emt 0:02:44]} 17. Kg2 {[%emt 0:10:07]} Nbc6 {[%emt 0:10:07]} 18. Rac1 {[%emt 0:00:41]} Rd8 {[%emt 0:04:01]} 19. Ba4 {[%emt 0:03:51]} Rxd1 {[%emt 0:08:58]} 20. Rxd1 {[%emt 0:00:18]} O-O {[%emt 0:01:51]} 21. Bxc6 {[%emt 0:01:55]} Nxc6 {[%emt 0:00:50]} 22. Rd7 {[%emt 0:00:47]} Rb8 {[%emt 0:05:35]} (22... f5 $1 $15 23. Nc3 (23. Nxg5 f4 $15) 23... Bf6) 23. Bxg5 {[%emt 0:03:14]} Bxg5 {[%emt 0:01:58]} 24. Nxg5 {[%emt 0:00:08]} Nd8 {[%emt 0:01:48]} 25. Kg3 {[%emt 0:01:52]} h6 {[%emt 0:01:23]} 26. Ne4 {[%emt 0:00:23]} Kg7 {[%emt 0:00:34]} 27. Kf4 {[%emt 0:08:49]} Kg6 {[%emt 0:04:09]} 28. Ke5 {[%emt 0:11:31]} b5 {[%emt 0:02:39]} 29. Kd6 {[%emt 0:02:50]} Rb6+ {[%emt 0:00:16]} 30. Kc7 {[%emt 0:02:25]} Nb7 {[%emt 0:01:28]} 31. b4 {[%emt 0:01:06]} f5 {[%emt 0:00:29]} 32. Nc3 {[%emt 0:11:09]} Kf6 {[%emt 0:00:46]} 33. f4 {[%emt 0:00:47]} h5 {[%emt 0:00:09]} 34. h4 {[%emt 0:00:10]} Kg6 {[%emt 0:00:24]} 35. Ne2 {[%emt 0:01:08]} Kf6 {[%emt 0:00:12]} 36. Nd4 {[%emt 0:00:16]} e5 {[%emt 0:00:30]} 37. fxe5+ {[%emt 0:00:48]} Kxe5 {[%emt 0:00:05]} 38. Nc6+ {[%emt 0:00:34]} Ke6 {[%emt 0:01:29]} 39. Rd2 {[%emt 0:00:40]} f4 {[%emt 0:00:46]} 40. Nxa7 Rd6 {[%emt 0:00:00]} 41. Re2+ {[%emt 0:01:01]} Kf5 {[%emt 0:00:15]} 42. Kxb7 {[%emt 0:04:34]} f3 {[%emt 0:00:23]} 43. Rc2 {[%emt 0:00:24]} Rd7+ {[%emt 0:00:35]} 44. Kb6 {[%emt 0:00:35]} Kg4 {[%emt 0:00:15]} 45. Nxb5 {[%emt 0:02:00]} Kxh4 {[%emt 0:00:11]} 46. a4 {[%emt 0:06:32]} Kh3 {[%emt 0:02:52]} 47. a5 {[%emt 0:02:27]} Kg2 {[%emt 0:00:12]} 48. a6 {[%emt 0:00:22]} h4 {[%emt 0:00:11]} 49. a7 {[%emt 0:00:35]} Rd8 {[%emt 0:00:15]} 50. Nd4 {[%emt 0:03:23]} h3 {[%emt 0:01:26] [#]} 51. Nxf3 $1 {[%emt 0:05:06]} Kxf3 {[%emt 0:00:09]} 52. Rc3+ $18 {[%emt 0:00:02]} Kg4 {[%emt 0:03:39]} 53. Rxh3 {[%emt 0:00:11]} Kxh3 {[%emt 0:00:15]} 54. b5 {[%emt 0:00:05]} Rf8 {[%emt 0:01:27]} 55. Kb7 {[%emt 0:01:27]} Rf7+ {[%emt 0:00:11]} 56. Ka6 {[%emt 0:00:06]} Rf8 {[%emt 0:00:57]} 57. b6 {[%emt 0:00:05]} Kg4 {[%emt 0:02:23]} 58. b7 {[%emt 0:00:16]} Rf6+ {[%emt 0:00:20]} 59. Kb5 {[%emt 0:00:06]} Rf5+ {[%emt 0:00:16]} 60. Kc4 {[%emt 0:00:22]} Rf4+ {[%emt 0:00:12]} 61. Kd3 {[%emt 0:01:09]} Rf3+ {[%emt 0:00:38]} 62. Ke2 {[%emt 0:00:31]} 1-0

[Event "EYCC Girls U14 2018"]
[Site "Riga"]
[Date "2018.08.29"]
[Round "9"]
[White "Mkrtchyan, Mariam"]
[Black "Lomaia, Diana"]
[Result "1-0"]
[ECO "A44"]
[WhiteElo "1881"]
[BlackElo "1851"]
[Annotator "NA"]
[PlyCount "89"]
[EventDate "2018.08.20"]
[EventType "swiss"]
[EventCountry "LAT"]
[SourceTitle "playchess.com"]
[Source "ChessBase"]
[SourceQuality "1"]
[TimeControl "40/5400+30:1800+30"]

1. d4 {[%emt 0:00:00]} c5 {[%emt 0:00:22]} 2. d5 {[%emt 0:01:44]} e5 {[%emt 0:01:20]} 3. e4 {[%emt 0:04:37]} d6 {[%emt 0:02:16]} 4. Nc3 {[%emt 0:00:47]} g6 {[%emt 0:01:22]} 5. h4 {[%emt 0:03:42]} Bg7 {[%emt 0:05:25]} 6. h5 {[%emt 0:02:11]} Nf6 {[%emt 0:12:05]} 7. Be2 {[%emt 0:08:13]} h6 {[%emt 0:07:12]} 8. Be3 {[%emt 0:07:35]} g5 {[%emt 0:02:48]} 9. a4 {[%emt 0:01:58]} a6 {[%emt 0:05:47]} 10. Nf3 {[%emt 0:06:22]} Nh7 {[%emt 0:06:22]} 11. Nd2 {[%emt 0:07:37]} b6 {[%emt 0:05:05]} 12. Nc4 {[%emt 0:05:16]} O-O $18 {[%emt 0:02:32]} 13. O-O {[%emt 0:10:17]} Ra7 {[%emt 0:03:13]} 14. g4 {[%emt 0:06:05]} Rb7 {[%emt 0:02:25]} 15. Qd2 {[%emt 0:02:25]} Nf6 {[%emt 0:02:16]} 16. f3 {[%emt 0:00:13]} Re8 {[%emt 0:06:37]} 17. Rfb1 {[%emt 0:00:57]} Ree7 {[%emt 0:01:37]} 18. b4 {[%emt 0:03:47]} Ne8 {[%emt 0:02:47]} 19. Rb3 {[%emt 0:03:47]} f6 {[%emt 0:14:50]} 20. Rab1 {[%emt 0:00:52]} Bf8 {[%emt 0:02:43]} 21. Qe1 {[%emt 0:03:49]} Rf7 {[%emt 0:03:38]} 22. R1b2 {[%emt 0:01:37]} Qc7 {[%emt 0:05:41]} 23. bxc5 {[%emt 0:03:15]} bxc5 {[%emt 0:00:15]} 24. Rxb7 {[%emt 0:00:47]} Bxb7 {[%emt 0:00:02]} 25. Qb1 {[%emt 0:00:09]} Bg7 {[%emt 0:02:38]} 26. Bd2 {[%emt 0:04:27]} f5 {[%emt 0:00:33]} 27. gxf5 {[%emt 0:01:58]} a5 {[%emt 0:01:01]} 28. Nb5 {[%emt 0:02:50]} Qe7 {[%emt 0:00:15]} 29. Nxa5 {[%emt 0:00:46]} Bc8 {[%emt 0:00:28]} 30. Nxd6 {[%emt 0:01:20]} Nxd6 {[%emt 0:00:46]} 31. Rxb8 {[%emt 0:00:11]} Kh7 {[%emt 0:00:13]} 32. Nc4 {[%emt 0:00:52]} Bd7 {[%emt 0:00:33]} 33. Nxd6 {[%emt 0:01:43]} Qxd6 {[%emt 0:00:02]} 34. a5 {[%emt 0:00:36]} Rf8 {[%emt 0:00:45]} 35. Rb6 {[%emt 0:00:09]} Qc7 {[%emt 0:00:11]} 36. a6 {[%emt 0:00:26]} Ra8 {[%emt 0:00:33]} 37. Ba5 {[%emt 0:00:58]} Qc8 {[%emt 0:00:07]} 38. Rb7 {[%emt 0:00:48]} Qe8 {[%emt 0:01:10]} 39. Qb6 {[%emt 0:00:26]} Bc8 {[%emt 0:00:35]} 40. Bb5 {[%emt 0:00:00]} Qf8 {[%emt 0:00:00]} 41. Qg6+ {[%emt 0:01:21]} Kh8 {[%emt 0:08:05]} 42. Rf7 {[%emt 0:02:17]} Qg8 {[%emt 0:02:55]} 43. a7 {[%emt 0:00:24]} Bf8 {[%emt 0:05:46]} 44. Bc6 {[%emt 0:01:08]} Qxg6 {[%emt 0:05:00]} 45. hxg6 {[%emt 0:01:37]} 1-0

[Event "EYCC Girls U14 2018"]
[Site "Riga"]
[Date "2018.08.29"]
[Round "9"]
[White "Ismayil, Malak"]
[Black "Yakimova, Mariya"]
[Result "1-0"]
[ECO "B30"]
[WhiteElo "1772"]
[BlackElo "1875"]
[Annotator "NA"]
[PlyCount "81"]
[EventDate "2018.08.20"]
[EventType "swiss"]
[EventCountry "LAT"]
[SourceTitle "playchess.com"]
[Source "ChessBase"]
[SourceQuality "1"]
[TimeControl "40/5400+30:1800+30"]

1. e4 {[%emt 0:00:00]} c5 {[%emt 0:00:00]} 2. Nf3 {[%emt 0:00:00]} Nc6 {[%emt 0:00:00]} 3. Bb5 {[%emt 0:00:00]} d6 {[%emt 0:00:04]} 4. h3 {[%emt 0:01:11]} Bd7 {[%emt 0:01:15]} 5. O-O {[%emt 0:01:13]} Nf6 {[%emt 0:00:17]} 6. Re1 {[%emt 0:09:41]} g5 $146 {[%emt 0:01:30] B51: Sicilian: Moscow Variation (3 Bb5+) without 3...Bd7} ({Predecessor:} 6... Ne5 7. Bxd7+ Nfxd7 8. Nh2 g6 9. d3 Bg7 10. Nd2 O-O 11. Ndf1 b5 12. Ng3 b4 13. f4 Nc6 14. f5 {1-0 (31) Kasimdzhanov,R (2703)-Moiseenko,A (2648) Almaty 2016}) 7. d4 {[%emt 0:02:44]} Nxd4 {[%emt 0:08:02]} 8. Nxd4 {[%emt 0:00:25]} cxd4 {[%emt 0:00:08]} 9. Bxd7+ {[%emt 0:00:21]} Qxd7 {[%emt 0:00:07]} 10. Qxd4 {[%emt 0:00:18]} Bg7 {[%emt 0:01:04]} 11. e5 {[%emt 0:14:27]} Ng8 {[%emt 0:08:20]} 12. Bxg5 {[%emt 0:03:36]} Bxe5 {[%emt 0:00:28]} 13. Qb4 {[%emt 0:00:18]} Nf6 {[%emt 0:07:06]} 14. c3 {[%emt 0:05:19]} (14. Nd2 $16) 14... h6 {[%emt 0:09:27]} 15. Bxf6 {[%emt 0:07:27]} Bxf6 {[%emt 0:00:06]} 16. Nd2 {[%emt 0:00:10]} Rg8 {[%emt 0:03:25] [#]} 17. Kh1 {[%emt 0:04:41]} (17. Ne4 $1 $16 {[%cal Re4f6]} Be5 {[#]} 18. f4 $1 {[%mdl 512]}) 17... O-O-O {[%emt 0:02:07]} 18. Ne4 {[%emt 0:02:10]} Be5 {[%emt 0:01:26]} 19. Qc4+ {[%emt 0:00:42]} Kb8 {[%emt 0:00:49]} 20. Qxf7 {[%emt 0:01:33]} Rdf8 {[%emt 0:02:19]} 21. Qh5 {[%emt 0:00:19]} Rf5 {[%emt 0:05:07]} 22. Qxh6 {[%emt 0:21:08]} Bf4 {[%emt 0:02:16]} 23. Qh7 {[%emt 0:01:13]} Rgf8 {[%emt 0:08:34]} 24. Re2 {[%emt 0:03:56]} Be5 {[%emt 0:04:04]} 25. Qg6 {[%emt 0:02:38]} Rh8 {[%emt 0:05:00]} (25... R5f7 $16 26. Rae1 Rg7) 26. Qg4 {[%emt 0:01:46]} e6 {[%emt 0:04:04]} 27. Re3 {[%emt 0:04:48]} Qh7 $18 {[%emt 0:03:58]} 28. Qe2 {[%emt 0:03:00]} Qf7 {[%emt 0:07:16]} 29. Kg1 {[%emt 0:03:11]} Bf4 {[%emt 0:01:20]} 30. Rd3 {[%emt 0:02:43]} d5 {[%emt 0:00:55]} 31. Ng3 {[%emt 0:00:48]} Rf6 {[%emt 0:01:24]} 32. Rad1 {[%emt 0:00:20]} Rh4 {[%emt 0:08:12]} 33. b3 {[%emt 0:01:29]} a6 {[%emt 0:04:27]} 34. c4 {[%emt 0:01:40]} dxc4 {[%emt 0:01:17]} 35. Rd8+ {[%emt 0:00:12]} Ka7 {[%emt 0:00:24]} 36. Qxc4 {[%emt 0:01:34]} Rh7 {[%emt 0:00:55]} 37. Qc5+ {[%emt 0:00:20]} b6 {[%emt 0:00:09]} 38. Qc6 {[%emt 0:00:17]} Qb7 {[%emt 0:00:56]} 39. R8d7 {[%emt 0:00:12]} Bc7 {[%emt 0:00:30]} 40. Qxb7+ {[%emt 0:00:00]} Kxb7 {[%emt 0:00:00]} 41. Rxh7 {[%emt 0:00:19]} 1-0